bitfinex/quotes_SOLUSD_20240607
["timestamp","ask_amount","ask_price","bid_price","bid_amount"]
[1717719512048,12.7646,170.21,170.16,2.1743]
[1717719512353,2.174,170.19,170.16,2.1743]
[1717719513151,2.1739,170.2,170.17,2.1742]
[1717719513746,2.1737,170.22,170.17,6.68]
[1717719513947,2.1737,170.22,170.19,2.1739]
[1717719514127,6.68,170.23,170.19,2.1739]
[1717719514327,2.1735,170.23,170.19,2.1739]
[1717719514630,2.1736,170.22,170.19,2.1739]
[1717719515646,2.1736,170.23,170.19,2.1739]
[1717719516826,2.1736,170.22,170.19,2.1739]
[1717719517146,2.1736,170.23,170.19,2.1739]
[1717719518050,2.1736,170.22,170.19,2.1739]
[1717719520156,4.3473,170.22,170.17,2.1742]
[1717719520364,2.1737,170.22,170.19,2.1739]
[1717719520644,2.1735,170.23,170.2,2.1738]
[1717719524957,8.8534,170.24,170.21,2.1737]
[1717719525342,2.1734,170.24,170.21,2.1737]
[1717719525860,8.8534,170.24,170.21,4.22719374]
[1717719526151,2.1734,170.24,170.21,2.1737]
[1717719526451,8.8534,170.24,170.21,4.22707309]
[1717719526768,8.8534,170.24,170.21,2.1737]
[1717719526929,8.8534,170.24,170.21,4.22790752]
[1717719527231,8.8534,170.24,170.21,2.1737]
[1717719527533,8.8534,170.24,170.21,4.22965676]
[1717719527731,8.8534,170.24,170.21,2.1737]
[1717719529642,2.1734,170.24,170.21,2.1737]
[1717719530446,6.0425008,170.28,170.23,6.68]
[1717719530751,2.1727,170.29,170.25,2.1732]
[1717719531140,8.8527,170.3,170.26,2.1731]
[1717719531340,8.8527,170.29,170.25,2.1732]
[1717719531542,2.1728,170.28,170.25,2.1732]
[1717719531846,2.1728,170.29,170.25,2.1732]
[1717719532025,2.1728,170.29,170.25,2.63100828]
[1717719532429,2.1728,170.29,170.26,0.45795885]
[1717719532858,2.1728,170.29,170.26,2.63105885]
[1717719533030,2.1728,170.29,170.27,0.45793195]
[1717719533236,2.1728,170.29,170.25,2.63103195]
[1717719533466,2.1728,170.29,170.26,2.1731]
[1717719534838,2.1728,170.29,170.25,2.63103195]
[1717719535334,2.1728,170.29,170.26,2.1731]
[1717719535954,2.1728,170.29,170.24,6.68]
[1717719535955,2.1728,170.29,170.25,2.1732]
[1717719537263,2.1727,170.3,170.26,2.1731]
[1717719537435,2.1727,170.29,170.26,2.1731]
[1717719537637,2.1727,170.3,170.26,2.1731]
[1717719537938,6.68,170.29,170.26,2.1731]
[1717719538670,2.1727,170.3,170.26,2.1731]
[1717719538839,6.68,170.29,170.26,2.1731]
[1717719539138,2.1727,170.29,170.26,2.1731]
[1717719539338,2.1727,170.3,170.26,2.1731]
[1717719539544,8.8527,170.3,170.26,2.1731]
[1717719540163,2.1727,170.29,170.26,2.1731]
[1717719541257,8.8526,170.3,170.26,2.1731]
[1717719541444,8.8526,170.3,170.27,2.173]
[1717719541647,2.1727,170.29,170.26,2.173]
[1717719541846,8.8527,170.3,170.26,2.173]
[1717719542049,2.1727,170.29,170.26,2.173]
[1717719542545,2.1727,170.3,170.26,2.173]
[1717719542746,2.1727,170.3,170.27,2.1729]
[1717719542952,8.8527,170.3,170.26,2.173]
[1717719543158,2.1727,170.3,170.26,2.173]
[1717719543350,8.8527,170.3,170.26,2.173]
[1717719543936,2.1727,170.3,170.27,2.1729]
[1717719544156,6.68,170.28,170.19,35.3]
[1717719544338,6.68,170.25,170.23,2.1734]
[1717719544539,2.1732,170.26,170.22,2.1736]
[1717719544768,6.68,170.25,170.23,2.1734]
[1717719544973,2.1732,170.26,170.2,19.5647]
[1717719545153,6.68,170.24,170.22,2.1736]
[1717719545745,6.68,170.24,170.23,2.1735]
[1717719546343,6.68,170.25,170.23,2.1735]
[1717719547564,6.68,170.25,170.22,2.1735]
[1717719548059,6.68,170.24,170.22,2.1735]
[1717719549460,4.3458,170.28,170.22,2.1735]
[1717719549461,6.68,170.23,170.22,2.1735]
[1717719550150,6.68,170.23,170.2,4.3477]
[1717719550349,6.68,170.24,170.2,4.3477]
[1717719550970,6.68,170.24,170.22,2.1736]
[1717719554756,6.68,170.23,170.21,2.1737]
[1717719554968,2.1734,170.24,170.21,2.1737]
[1717719554969,6.68,170.22,170.21,2.1737]
[1717719556858,6.5779,170.24,170.2,4.3478]
[1717719556859,6.68,170.23,170.22,2.1736]
[1717719558168,15.4485,170.23,170.18,4.3481]
[1717719558464,2.1742,170.18,170.14,37.4746]
[1717719558662,2.1742,170.18,170.16,2.1743]
[1717719558663,6.68,170.18,170.16,2.1743]
[1717719558847,6.68,170.17,170.15,2.1745]
[1717719559170,6.68,170.17,170.13,4.3496]
[1717719559371,6.68,170.15,170.13,2.1747]
[1717719560173,6.68,170.15,170.14,2.1746]
[1717719560373,6.595,170.18,170.15,2.1745]
[1717719560573,8.8541,170.19,170.15,2.1745]
[1717719560757,42.4259,170.22,170.16,2.1744]
[1717719560952,6.595,170.22,170.15,13.2035]
[1717719561163,6.68,170.21,170.16,4.3487]
[1717719561471,6.68,170.21,170.19,2.174]
[1717719561679,6.68,170.22,170.19,2.174]
[1717719562258,28.83806114,170.26,170.18,6.5224]
[1717719562564,2.1733,170.25,170.19,4.3479]
[1717719562754,6.68,170.25,170.2,4.3477]
[1717719563070,6.68,170.25,170.22,2.1735]
[1717719563272,8.8532,170.25,170.22,2.1735]
[1717719563477,6.68,170.25,170.22,2.1735]
[1717719563860,8.8532,170.25,170.21,2.1737]
[1717719564062,8.8532,170.25,170.22,2.1736]
[1717719564453,8.8532,170.25,170.21,2.1737]
[1717719566079,2.1732,170.25,170.21,2.1737]
[1717719566253,8.8532,170.25,170.21,2.1737]
[1717719568183,2.1732,170.25,170.21,2.1737]
[1717719568358,8.8532,170.25,170.21,2.1737]
[1717719572180,6.3448,170.26,170.22,2.1735]
[1717719572181,8.518,170.26,170.22,2.1735]
[1717719572370,2.1732,170.26,170.22,2.1735]
[1717719572570,2.173,170.27,170.23,2.1735]
[1717719572788,2.173,170.27,170.22,6.68]
[1717719572789,2.173,170.27,170.24,2.1733]
[1717719573086,8.8529,170.28,170.24,2.1733]
[1717719573287,2.1729,170.28,170.24,2.1733]
[1717719573464,2.173,170.27,170.24,2.1733]
[1717719574764,6.68,170.28,170.24,2.1733]
[1717719574765,2.1729,170.28,170.24,2.1733]
[1717719574961,8.8529,170.28,170.24,2.1733]
[1717719575164,2.1729,170.28,170.24,2.1733]
[1717719581182,2.173,170.27,170.24,2.1733]
[1717719581900,8.853,170.27,170.24,2.1733]
[1717719586297,6.68,170.27,170.24,2.1733]
[1717719587602,6.68,170.27,170.25,2.1732]
[1717719588294,8.8529,170.28,170.25,2.1732]
[1717719589711,8.8529,170.28,170.24,2.1733]
[1717719589899,2.173,170.27,170.24,2.1733]
[1717719592607,2.1729,170.28,170.25,2.1732]
[1717719592800,8.8529,170.28,170.25,2.1732]
[1717719593818,8.8529,170.28,170.24,2.1733]
[1717719594217,2.173,170.27,170.24,2.1733]
[1717719596654,8.8529,170.28,170.24,2.1733]
[1717719597220,2.173,170.27,170.24,2.1733]
[1717719601028,8.8529,170.28,170.24,2.1733]
[1717719601731,2.173,170.27,170.24,2.1733]
[1717719603608,8.853,170.27,170.24,2.1733]
[1717719604007,6.68,170.27,170.24,2.1733]
[1717719604525,8.853,170.27,170.24,2.1733]
[1717719606434,6.68,170.25,170.22,2.1735]
[1717719606635,6.68,170.25,170.22,22.1735]
[1717719606936,10.705,170.28,170.23,2.1734]
[1717719607112,6.68,170.25,170.23,2.1734]
[1717719607726,2.1729,170.28,170.24,2.1734]
[1717719608019,6.68,170.27,170.25,2.1732]
[1717719608405,8.8529,170.28,170.25,2.1732]
[1717719608604,8.8529,170.28,170.24,2.1733]
[1717719608822,8.8529,170.28,170.24,4.52239535]
[1717719609026,8.8529,170.28,170.24,2.1733]
[1717719609541,6.68,170.29,170.24,6.69579437]
[1717719609835,8.8528,170.29,170.25,2.1731]
[1717719610625,2.1728,170.28,170.25,2.1731]
[1717719613237,2.1728,170.28,170.24,2.1733]
[1717719613413,8.8528,170.28,170.24,2.1733]
[1717719613620,2.1728,170.28,170.24,2.1733]
[1717719613832,8.8528,170.28,170.24,2.1733]
[1717719614437,2.1728,170.28,170.24,2.1733]
[1717719614628,2.1728,170.28,170.25,2.1732]
[1717719614815,2.1728,170.28,170.24,2.1733]
[1717719615540,8.853,170.27,170.23,2.1734]
[1717719616007,2.1731,170.26,170.22,22.1735]
[1717719616343,6.68,170.24,170.22,22.1735]
[1717719616711,6.68,170.24,170.22,2.1735]
[1717719617315,6.68,170.24,170.23,2.1735]
[1717719617512,2.173,170.27,170.23,2.1735]
[1717719617737,6.68,170.25,170.23,2.1735]
[1717719618033,6.68,170.25,170.24,2.1734]
[1717719618333,13.0363,170.3,170.24,2.1734]
[1717719618334,6.68,170.26,170.24,2.1734]
[1717719620218,6.68,170.26,170.23,2.1734]
[1717719621331,6.68,170.26,170.24,2.1733]
[1717719622140,8.853,170.27,170.24,2.1733]
[1717719622645,6.68,170.26,170.23,2.1734]
[1717719622820,6.68,170.25,170.23,2.1734]
[1717719623641,8.3592,170.27,170.23,2.1734]
[1717719623854,6.68,170.25,170.23,2.1734]
[1717719625126,6.1862,170.27,170.24,2.1733]
[1717719625345,6.68,170.25,170.24,2.1733]
[1717719625749,6.1862,170.27,170.25,2.1732]
[1717719625955,6.68,170.27,170.25,2.1732]
[1717719626443,2.1728,170.29,170.25,2.1732]
[1717719626643,6.68,170.27,170.25,2.1732]
[1717719626835,6.68,170.28,170.25,2.1732]
[1717719627160,2.1728,170.29,170.25,2.1732]
[1717719627339,6.68,170.28,170.25,2.1732]
[1717719628949,2.1728,170.29,170.25,2.1732]
[1717719629123,2.1726,170.3,170.24,10.8668]
[1717719629454,2.1726,170.3,170.27,2.1729]
[1717719629455,6.68,170.3,170.27,2.1729]
[1717719629622,6.68,170.3,170.24,13.2001]
[1717719629623,6.68,170.3,170.26,8.6925]
[1717719629829,6.68,170.31,170.28,2.1728]
[1717719630535,8.8525,170.31,170.28,2.1728]
[1717719630947,2.1725,170.31,170.28,2.1728]
[1717719631138,2.1724,170.32,170.28,2.1728]
[1717719631340,8.8524,170.32,170.28,2.1728]
[1717719632328,2.1722,170.33,170.29,2.1726]
[1717719632574,2.1724,170.32,170.28,2.1728]
[1717719632846,8.8524,170.32,170.28,2.1728]
[1717719633455,6.045,170.39,170.3,8.6904]
[1717719633760,8.852,170.35,170.29,6.68]
[1717719634353,2.172,170.35,170.3,6.68]
[1717719634934,2.172,170.35,170.31,2.1724]
[1717719635128,6.68,170.35,170.3,2.1725]
[1717719635356,13.03,170.38,170.3,41.98]
[1717719635541,8.8519,170.36,170.32,2.1723]
[1717719635943,8.8519,170.36,170.31,2.1724]
[1717719636142,6.68,170.36,170.31,2.1724]
[1717719636341,8.8519,170.36,170.31,2.1724]
[1717719636559,8.8519,170.36,170.32,2.1723]
[1717719637383,8.8519,170.36,170.33,2.1722]
[1717719637384,6.68,170.36,170.33,2.1722]
[1717719637660,6.68,170.36,170.32,2.1723]
[1717719638159,8.8518,170.36,170.32,2.1723]
[1717719639048,2.1717,170.37,170.33,2.1722]
[1717719639243,8.8517,170.37,170.33,2.1722]
[1717719639551,8.8517,170.37,170.32,2.1723]
[1717719639756,6.68,170.37,170.32,2.1723]
[1717719639966,6.68,170.35,170.32,2.1723]
[1717719643167,6.68,170.35,170.33,2.1722]
[1717719643342,8.8518,170.36,170.32,2.1723]
[1717719643669,6.68,170.34,170.32,2.1723]
[1717719647160,6.68,170.35,170.33,2.1722]
[1717719648972,2.1718,170.37,170.33,2.1722]
[1717719649283,6.68,170.36,170.33,2.1722]
[1717719649562,6.68,170.35,170.32,2.1723]
[1717719650259,6.68,170.35,170.33,2.1722]
[1717719650644,6.68,170.35,170.32,2.1723]
[1717719651172,6.68,170.35,170.33,2.1722]
[1717719651768,6.68,170.36,170.34,2.1721]
[1717719652747,6.68,170.36,170.33,2.1721]
[1717719653563,6.68,170.37,170.33,2.1721]
[1717719653876,6.68,170.36,170.33,2.1721]
[1717719654176,8.8517,170.37,170.33,2.1721]
[1717719654382,6.68,170.37,170.34,2.1721]
[1717719654574,6.68,170.37,170.33,2.1721]
[1717719655154,8.8517,170.37,170.33,2.1721]
[1717719656767,2.1717,170.37,170.33,2.1721]
[1717719657091,6.68,170.35,170.32,2.1723]
[1717719657257,6.68,170.35,170.33,2.1722]
[1717719657776,6.68,170.35,170.31,24.3449]
[1717719657777,8.8519,170.36,170.31,20.0]
[1717719657974,6.68,170.35,170.31,20.0]
[1717719658160,6.68,170.35,170.32,2.1722]
[1717719659574,6.68,170.35,170.33,2.1722]
[1717719659779,6.68,170.36,170.33,2.1722]
[1717719660287,8.8518,170.36,170.32,2.1723]
[1717719660585,6.68,170.35,170.32,2.1723]
[1717719661171,2.1718,170.37,170.33,2.1722]
[1717719661480,2.1716,170.38,170.34,2.1721]
[1717719661700,6.68,170.36,170.33,2.1721]
[1717719662191,8.8518,170.36,170.32,2.1723]
[1717719662563,6.68,170.36,170.32,2.1723]
[1717719662769,6.68,170.35,170.32,2.1723]
[1717719663983,6.68,170.36,170.32,2.1723]
[1717719664264,2.1718,170.37,170.33,2.1722]
[1717719664471,6.68,170.36,170.33,2.1722]
[1717719667090,2.1718,170.37,170.33,2.1722]
[1717719667297,6.68,170.36,170.33,2.1722]
[1717719667665,6.68,170.36,170.31,4.3449]
[1717719668975,6.68,170.36,170.32,2.1723]
[1717719669875,6.68,170.35,170.32,2.1723]
[1717719671095,6.18,170.35,170.32,2.1723]
[1717719671298,6.18,170.35,170.33,2.1722]
[1717719671593,6.18,170.35,170.32,2.1722]
[1717719673668,6.18,170.35,170.33,2.1722]
[1717719674890,2.1716,170.38,170.33,2.1722]
[1717719675098,6.68,170.36,170.33,2.1722]
[1717719678077,2.1717,170.37,170.33,2.1722]
[1717719678282,6.68,170.36,170.33,2.1722]
[1717719680004,6.68,170.35,170.3,20.0]
[1717719680300,6.5714,170.35,170.3,20.0]
[1717719680598,6.5714,170.35,170.28,4.3456]
[1717719680599,6.68,170.31,170.28,2.1728]
[1717719681184,2.1723,170.33,170.29,2.1727]
[1717719681384,6.68,170.31,170.29,2.1727]
[1717719683995,6.68,170.31,170.3,2.1726]
[1717719684301,6.68,170.32,170.3,2.1726]
[1717719684503,2.1721,170.34,170.3,2.1726]
[1717719684504,6.68,170.33,170.3,2.1726]
[1717719685793,6.13304589,170.37,170.31,2.1725]
[1717719685979,6.68,170.35,170.31,2.1725]
[1717719686386,6.68,170.35,170.32,2.1723]
[1717719686582,6.68,170.35,170.31,2.1724]
[1717719687703,2.1719,170.36,170.31,2.1724]
[1717719687907,6.68,170.35,170.32,2.1723]
[1717719688687,6.68,170.35,170.31,2.1724]
[1717719690400,8.852,170.35,170.31,2.1724]
[1717719690707,6.68,170.33,170.29,2.1726]
[1717719690883,6.68,170.32,170.29,22.1726]
[1717719691395,6.68,170.32,170.29,20.0]
[1717719691595,6.68,170.32,170.29,2.1727]
[1717719693800,6.68,170.32,170.3,2.1726]
[1717719693986,6.68,170.33,170.3,2.1726]
[1717719694706,17.5389,170.37,170.28,24.3457]
[1717719694707,2.172,170.35,170.28,37.5442]
[1717719694903,2.172,170.35,170.31,2.1725]
[1717719695212,8.852,170.35,170.31,2.1725]
[1717719696710,8.852,170.35,170.3,2.1725]
[1717719697705,2.172,170.35,170.3,2.1725]
[1717719697913,8.852,170.35,170.3,2.1725]
[1717719698797,6.68,170.32,170.29,2.1727]
[1717719700408,10.47646765,170.37,170.31,2.1725]
[1717719700626,2.1721,170.34,170.3,2.1726]
[1717719700803,6.68,170.33,170.29,2.1726]
[1717719701002,6.68,170.33,170.3,2.1726]
[1717719701209,6.68,170.33,170.29,2.1726]
[1717719701390,2.1721,170.34,170.29,2.1726]
[1717719701592,2.1721,170.34,170.3,2.1726]
[1717719701917,6.68,170.33,170.3,2.1726]
[1717719702414,0.34,170.38,170.3,2.1725]
[1717719702711,6.68,170.33,170.3,2.1725]
[1717719703195,8.8521,170.34,170.3,2.1725]
[1717719704228,6.68,170.34,170.3,2.1725]
[1717719704516,8.8521,170.34,170.3,2.1725]
[1717719704816,2.1721,170.34,170.3,2.1725]
[1717719705019,6.68,170.35,170.31,2.1724]
[1717719705420,8.852,170.35,170.31,2.1724]
[1717719705910,6.68,170.35,170.29,35.3]
[1717719706121,8.8518,170.37,170.32,2.1723]
[1717719706330,2.1718,170.36,170.32,2.1723]
[1717719706499,8.8518,170.36,170.32,2.1723]
[1717719707004,6.68,170.36,170.32,2.1723]
[1717719710328,8.8518,170.36,170.32,2.1723]
[1717719710913,8.8518,170.36,170.31,2.1724]
[1717719711120,6.68,170.35,170.31,2.1724]
[1717719712610,8.8518,170.36,170.31,2.1724]
[1717719712810,6.68,170.35,170.31,2.1724]
[1717719713317,25.6584,170.39,170.31,2.1724]
[1717719713318,2.1718,170.37,170.32,2.1723]
[1717719713626,2.1718,170.37,170.33,1.17324736]
[1717719713834,8.8518,170.37,170.33,1.17324736]
[1717719714557,6.1146,170.39,170.33,1.17324736]
[1717719714712,2.1715,170.39,170.34,2.172]
[1717719714906,6.68,170.38,170.34,2.172]
[1717719715313,2.1715,170.39,170.34,2.172]
[1717719715608,6.68,170.38,170.34,2.172]
[1717719716759,8.8514,170.39,170.35,1.17310961]
[1717719719636,8.8514,170.39,170.35,3.34500961]
[1717719720222,8.8514,170.39,170.35,1.17310961]
[1717719722234,8.8514,170.39,170.34,22.172]
[1717719722408,6.68,170.38,170.34,22.172]
[1717719722614,6.68,170.38,170.34,2.172]
[1717719723639,6.68,170.38,170.35,2.1719]
[1717719723850,2.1714,170.4,170.35,2.1719]
[1717719724137,2.1714,170.4,170.36,2.1718]
[1717719724346,6.68,170.39,170.36,2.1718]
[1717719725330,2.1713,170.4,170.36,2.1718]
[1717719725644,6.68,170.39,170.35,2.1719]
[1717719726433,2.1712,170.42,170.37,2.1716]
[1717719726625,22.40259114,170.43,170.36,2.1717]
[1717719726938,6.68,170.39,170.36,2.1717]
[1717719727132,2.1713,170.4,170.35,2.1719]
[1717719727339,6.68,170.39,170.35,2.1719]
[1717719728539,8.8513,170.4,170.35,2.1719]
[1717719729619,6.68,170.39,170.35,2.1719]
[1717719730738,2.1713,170.4,170.35,2.1719]
[1717719731045,6.68,170.39,170.35,2.1719]
[1717719731540,6.68,170.39,170.33,55.3]
[1717719731933,8.8515,170.39,170.34,2.1721]
[1717719732949,6.68,170.39,170.35,2.1719]
[1717719734135,2.1713,170.41,170.36,2.1718]
[1717719734438,6.68,170.39,170.36,2.1718]
[1717719735545,6.68,170.39,170.35,2.1719]
[1717719738023,2.1713,170.4,170.35,2.1719]
[1717719738228,6.68,170.39,170.36,2.1718]
[1717719738630,8.8513,170.4,170.36,2.1718]
[1717719738839,2.1713,170.4,170.35,2.1719]
[1717719739036,6.68,170.39,170.35,2.1719]
[1717719739238,8.8513,170.4,170.35,2.1719]
[1717719741941,8.8514,170.4,170.35,2.1719]
[1717719742141,2.1715,170.39,170.33,55.3]
[1717719742456,8.8515,170.39,170.33,61.98]
[1717719742755,6.68,170.39,170.35,2.1719]
[1717719744671,6.68,170.39,170.36,2.1718]
[1717719746053,4.3422,170.42,170.36,2.1718]
[1717719746350,6.68,170.4,170.36,2.1718]
[1717719746950,8.8513,170.4,170.36,2.1718]
[1717719747152,8.8513,170.4,170.35,2.1719]
[1717719749554,6.68,170.39,170.35,2.1719]
[1717719750848,6.68,170.39,170.34,4.3441]
[1717719750849,6.68,170.39,170.36,2.1718]
[1717719751553,2.1713,170.4,170.36,2.1718]
[1717719751760,8.8513,170.4,170.36,2.1718]
[1717719752161,8.8513,170.4,170.35,2.1719]
[1717719752359,2.1714,170.39,170.35,2.1719]
[1717719752959,8.8514,170.4,170.35,2.1719]
[1717719754740,6.68,170.41,170.36,2.1718]
[1717719755358,2.1713,170.4,170.36,2.1718]
[1717719755541,8.8513,170.41,170.36,2.1718]
[1717719757564,2.1713,170.41,170.36,2.1718]
[1717719757758,8.8513,170.41,170.36,2.1718]
[1717719758058,2.1711,170.42,170.37,2.1717]
[1717719758270,6.68,170.41,170.37,2.1717]
[1717719758457,2.1711,170.42,170.37,2.1717]
[1717719758653,6.68,170.41,170.37,2.1717]
[1717719759045,8.8512,170.41,170.37,2.1717]
[1717719759246,2.1712,170.41,170.37,2.1717]
[1717719759449,6.68,170.41,170.37,2.1717]
[1717719759652,8.8512,170.41,170.37,2.1717]
[1717719759855,2.1712,170.41,170.37,2.1717]
[1717719760151,8.8512,170.41,170.37,2.1717]
[1717719760361,8.8512,170.41,170.36,2.1718]
[1717719760669,6.68,170.4,170.36,2.1718]
[1717719763975,2.1712,170.41,170.37,2.1717]
[1717719764159,6.68,170.4,170.37,2.1717]
[1717719764466,6.68,170.4,170.36,2.1717]
[1717719772472,6.68,170.4,170.35,20.0]
[1717719773577,6.68,170.4,170.36,2.1718]
[1717719774313,8.8513,170.41,170.36,2.1718]
[1717719774579,6.68,170.41,170.37,2.1717]
[1717719775363,8.8512,170.41,170.36,2.1717]
[1717719781500,2.1712,170.41,170.36,2.1717]
[1717719781667,2.1711,170.42,170.38,2.1715]
[1717719781866,8.8511,170.42,170.38,2.1715]
[1717719782780,8.8511,170.42,170.37,2.1716]
[1717719784171,2.9663432,170.43,170.38,2.1716]
[1717719784373,0.7953432,170.43,170.4,2.1713]
[1717719784572,0.7953432,170.43,170.41,2.1712]
[1717719787306,0.7953432,170.43,170.42,2.1711]
[1717719787782,0.7953432,170.43,170.41,2.1711]
[1717719791999,0.7953432,170.43,170.42,2.1711]
[1717719797510,0.7953432,170.43,170.41,8.8511]
[1717719797816,0.7953432,170.43,170.42,2.1711]
[1717719799213,0.7953432,170.43,170.41,8.8511]
[1717719800404,0.7953432,170.43,170.41,2.1711]
[1717719800606,0.7953432,170.43,170.41,8.8511]
[1717719800997,0.7953432,170.43,170.42,2.1711]
[1717719808026,0.7953432,170.43,170.42,8.8511]
[1717719817311,0.7953432,170.43,170.4,20.0]
[1717719817513,2.1711,170.42,170.38,2.1715]
[1717719817827,16.2302432,170.43,170.39,2.1714]
[1717719819231,6.0815,170.42,170.39,2.1714]
[1717719822839,7.4753432,170.43,170.4,2.1713]
[1717719823146,0.7953432,170.43,170.4,2.1713]
[1717719830049,0.7953432,170.43,170.41,2.1712]
[1717719830624,0.7953432,170.43,170.4,8.8512]
[1717719832938,0.7953432,170.43,170.4,2.1712]
[1717719833748,0.7953432,170.43,170.39,6.68]
[1717719834059,0.7953432,170.43,170.4,2.1713]
[1717719835039,0.7953432,170.43,170.41,2.1712]
[1717719836832,0.7953432,170.43,170.4,2.1712]
[1717719838160,0.7953432,170.43,170.41,2.1712]
[1717719839155,0.7953432,170.43,170.42,2.1711]
[1717719858271,0.7953432,170.43,170.42,48.391]
[1717719859284,0.7953432,170.43,170.42,83.621]
[1717719859453,0.7953432,170.43,170.42,121.941]
[1717719859655,0.7953432,170.43,170.42,128.621]
[1717719860572,0.7953432,170.43,170.42,121.941]
[1717719860765,0.7953432,170.43,170.42,128.621]
[1717719865687,0.7953432,170.43,170.42,128.961]
[1717719866475,0.7953432,170.43,170.42,122.281]
[1717719866683,0.7953432,170.43,170.42,128.961]
[1717719871282,0.7953432,170.43,170.42,122.111]
[1717719871589,0.7953432,170.43,170.42,61.7433]
[1717719871771,0.7953432,170.43,170.42,68.4233]
[1717719871972,0.7953432,170.43,170.42,74.9366]
[1717719872782,0.7953432,170.43,170.42,68.2566]
[1717719873093,0.7953432,170.43,170.42,74.9366]
[1717719873887,0.7953432,170.43,170.42,83.621]
[1717719889489,0.7953432,170.43,170.42,128.621]
[1717719892019,0.7953432,170.43,170.42,76.941]
[1717719892206,0.7953432,170.43,170.42,83.621]
[1717719892597,0.7953432,170.43,170.42,76.941]
[1717719895205,0.7953432,170.43,170.42,41.711]
[1717719895705,0.7953432,170.43,170.42,48.391]
[1717719902930,0.7953432,170.43,170.42,22.1711]
[1717719903120,6.1184,170.41,170.36,35.23]
[1717719903463,6.1184,170.41,170.39,2.1714]
[1717719903960,6.1184,170.41,170.4,2.1713]
[1717719909248,6.68,170.42,170.39,2.1714]
[1717719909545,6.68,170.42,170.38,20.0]
[1717719909546,6.2414,170.39,170.38,20.0]
[1717719909732,6.2414,170.38,170.37,2.1716]
[1717719910367,6.2414,170.38,170.32,2.1723]
[1717719910368,8.6901,170.37,170.32,2.1723]
[1717719910644,6.5183,170.33,170.32,2.1723]
[1717719911222,6.68,170.33,170.23,4.62264357]
[1717719911525,6.3446,170.29,170.23,10.8672]
[1717719911832,6.3446,170.29,170.26,2.173]
[1717719912159,29.4635,170.32,170.29,2.1727]
[1717719912335,29.4635,170.32,170.29,2.1726]
[1717719912646,23.1153,170.32,170.28,2.1728]
[1717719912854,6.331,170.3,170.28,2.1728]
[1717719913032,6.331,170.3,170.25,4.3463]
[1717719913033,6.331,170.3,170.27,2.1729]
[1717719913554,6.331,170.28,170.26,2.173]
[1717719914234,6.68,170.29,170.21,48.2721]
[1717719914235,6.68,170.27,170.21,48.2721]
[1717719914444,6.6137,170.27,170.24,2.1733]
[1717719915027,6.6137,170.27,170.25,2.1732]
[1717719915249,6.6137,170.27,170.26,2.1731]
[1717719915558,8.786,170.33,170.24,15.2134]
[1717719915848,22.7545,170.31,170.28,2.1728]
[1717719916060,6.0212,170.3,170.28,2.1728]
[1717719917244,6.68,170.32,170.3,2.1726]
[1717719917429,6.1648,170.33,170.31,2.1724]